fUST/lending_fUST_20250622
["ID","MTS","AMOUNT","RATE_DAILY","PERIOD"]
[366929982,1750585785895,-460.0,0.00021964,3]
[366929983,1750585785914,-185.72015618,0.00021964,3]
[366929984,1750585785935,-467.12699492,0.00021964,3]
[366929985,1750585785957,-387.37893653,0.00021964,3]
[366929986,1750585785978,-460.0,0.00021964,3]
[366929987,1750585785998,-408.82568347,0.00021964,3]
[366929988,1750585786020,-460.0,0.00021964,3]
[366929989,1750585786043,-460.0,0.00021964,3]
[366929990,1750585786064,-1185.16,0.00021964,2]
[366929991,1750585786084,-463.41800644,0.00021964,3]
[366929992,1750585786106,-460.0,0.00021964,3]
[366929993,1750585786126,-460.0,0.00021964,3]
[366929994,1750585786148,-460.0,0.00021964,3]
[366929995,1750585786169,-460.0,0.00021964,3]
[366929996,1750585786189,-432.1869498,0.00021964,3]
[366929997,1750585786209,-433.75851988,0.00021964,3]
[366929998,1750585786233,-460.0,0.00021964,3]
[366929999,1750585786253,-468.05695752,0.00021964,3]
[366930000,1750585786273,-433.2808707,0.00021964,3]
[366930001,1750585786293,-460.0,0.00021964,3]
[366930002,1750585786315,-460.0,0.00021964,3]
[366930003,1750585786338,-463.51960932,0.00021964,3]
[366930004,1750585786359,-461.75177177,0.00021964,3]
[366930005,1750585786378,-441.68881488,0.00021964,3]
[366930006,1750585786398,-302.11178498,0.00021964,3]
[366930007,1750585786418,-460.0,0.00021964,3]
[366930008,1750585786438,-460.0,0.00021964,3]
[366930009,1750585786458,-460.0,0.00021964,3]
[366930010,1750585786478,-299.95098838,0.00021964,3]
[366930011,1750585786498,-462.88608439,0.00021964,3]
[366930012,1750585786518,-461.51018124,0.00021964,3]
[366930013,1750585786538,-316.66507704,0.00021964,3]
[366930014,1750585786558,-460.0,0.00021964,3]
[366930015,1750585786578,-432.79412721,0.00021964,3]
[366930016,1750585786600,-435.22194498,0.00021964,3]
[366930017,1750585786621,-461.92098615,0.00021964,3]
[366930018,1750585786641,-464.34040211,0.00021964,3]
[366930019,1750585786665,-402.91802025,0.00021964,3]
[366930020,1750585786687,-327.45279361,0.00021964,3]
[366930021,1750585786799,-460.0,0.00021964,3]
[366930022,1750585786822,-460.0,0.00021964,3]
[366930023,1750585786844,-468.03162324,0.00021964,3]
[366930024,1750585786865,-468.54688968,0.00021964,3]
[366930025,1750585786886,-460.0,0.00021964,3]
[366930026,1750585786906,-434.49119712,0.00021964,3]
[366930027,1750585786926,-286.24425651,0.00021964,3]
[366930028,1750585786947,-460.0,0.00021964,3]
[366930029,1750585786967,-460.0,0.00021964,3]
[366930030,1750585786987,-436.01706513,0.00021964,3]
[366930031,1750585787008,-467.47145539,0.00021964,3]
[366930032,1750585787028,-465.21023957,0.00021964,3]
[366930033,1750585787049,-432.20295532,0.00021964,3]
[366930034,1750585787069,-461.12376423,0.00021964,3]
[366930035,1750585787090,-468.68763943,0.00021964,3]
[366930036,1750585787113,-157.09064962,0.00021964,3]
[366930037,1750585787133,-460.0,0.00021964,3]
[366930038,1750585787154,-400.0,0.00021964,3]
[366930039,1750585787174,-464.36082185,0.00021964,3]
[366930040,1750585787196,-460.0,0.00021964,3]
[366930041,1750585787219,-467.54415067,0.00021964,3]
[366930042,1750585787240,-460.0,0.00021964,3]
[366930043,1750585787265,-435.36204186,0.00021964,3]
[366930044,1750585787286,-437.88585655,0.00021964,3]
[366930045,1750585787307,-430.0,0.00021964,3]
[366930046,1750585787327,-460.0,0.00021964,2]
[366930047,1750585787348,-460.0,0.00021964,3]
[366930048,1750585787369,-460.0,0.00021964,2]
[366930049,1750585787389,-460.0,0.00021964,3]
[366930050,1750585787410,-460.0,0.00021964,3]
[366930051,1750585787430,-437.80487274,0.00021964,3]
[366930052,1750585787451,-460.0,0.00021964,3]
[366930053,1750585787470,-432.97271329,0.00021964,3]
[366930054,1750585787490,-460.0,0.00021964,3]
[366930055,1750585787510,-460.0,0.00021964,3]
[366930056,1750585787530,-460.0,0.00021964,3]
[366930057,1750585787550,-460.0,0.00021964,3]
[366930058,1750585787569,-447.36330694,0.00021964,3]
[366930059,1750585787589,-404.30911327,0.00021964,3]
[366930060,1750585787611,-460.0,0.00021964,3]
[366930061,1750585787631,-460.0,0.00021964,3]
[366930062,1750585787652,-460.0,0.00021964,3]
[366930063,1750585787672,-460.0,0.00021964,3]
[366930064,1750585787692,-464.82571698,0.00021964,3]
[366930065,1750585787713,-508.756742,0.00021964,3]
[366930066,1750585787732,-460.0,0.00021964,3]
[366930067,1750585787752,-460.0,0.00021964,3]
[366930068,1750585787773,-460.0,0.00021964,3]
[366930069,1750585787794,-460.0,0.00021964,3]
[366930070,1750585787816,-460.0,0.00021964,3]
[366930071,1750585787838,-460.0,0.00021964,3]
[366930072,1750585787859,-372.28779309,0.00021964,3]
[366930073,1750585787881,-460.0,0.00021964,3]
[366930074,1750585787902,-460.0,0.00021964,3]
[366930075,1750585787924,-468.1693276,0.00021964,3]
[366930076,1750585787944,-649.84,0.00021964,3]
[366930077,1750585787965,-649.84,0.00021964,3]
[366930078,1750585787985,-462.27803661,0.00021964,3]
[366930079,1750585788005,-504.51038263,0.00021964,3]
[366930080,1750585788028,-372.85121251,0.00021964,3]
[366930081,1750585788051,-460.0,0.00021964,3]
[366930082,1750585788071,-436.01874779,0.00021964,3]
[366930083,1750585788093,-460.0,0.00021964,3]
[366930084,1750585788116,-460.0,0.00021964,3]
[366930085,1750585788139,-460.0,0.00021964,3]
[366930086,1750585788161,-430.0,0.00021964,3]
[366930087,1750585788185,-460.0,0.00021964,3]
[366930088,1750585788207,-225.6788995,0.00021964,3]
[366930089,1750585788232,-446.4959103,0.00021964,3]
[366930090,1750585788253,-460.0,0.00021964,3]
[366930091,1750585788274,-413.70133724,0.00021964,3]
[366930092,1750585788295,-431.87286803,0.00021964,3]
[366930093,1750585788317,-460.0,0.00021964,3]
[366930094,1750585788339,-460.0,0.00021964,3]
[366930095,1750585788363,-460.0,0.00021964,3]
[366930096,1750585788384,-352.74746823,0.00021964,3]
[366930097,1750585788405,-462.20645035,0.00021964,3]
[366930098,1750585788427,-151.0,0.00021964,7]
[366930099,1750585788450,-371.88467766,0.00021964,3]
[366930100,1750585788471,-460.0,0.00021964,3]
[366930101,1750585788493,-421.42668973,0.00021964,3]
[366930102,1750585788513,-441.50012172,0.00021964,3]
[366930103,1750585788535,-460.0,0.00021964,3]
[366930104,1750585788556,-323.5592128,0.00021964,3]
[366930105,1750585788580,-460.0,0.00021964,3]
[366930106,1750585788602,-460.0,0.00021964,3]
[366930107,1750585788625,-500.0,0.00021964,3]
[366930108,1750585788647,-447.02649285,0.00021964,3]
[366930109,1750585788669,-460.0,0.00021964,3]
[366930110,1750585788690,-460.0,0.00021964,3]
[366930111,1750585788713,-460.0,0.00021964,3]
[366930112,1750585788735,-460.0,0.00021964,3]
[366930113,1750585788758,-765.19,0.00021964,3]
[366930114,1750585788781,-437.43692131,0.00021964,3]
[366930115,1750585788803,-561.38939196,0.00021964,3]
[366930116,1750585788825,-216.25348547,0.00021964,3]
[366930117,1750585788848,-151.0,0.00021964,7]
[366930118,1750585788873,-422.40092682,0.00021964,3]
[366930119,1750585788896,-460.0,0.00021964,3]
[366930120,1750585788918,-198.51353345,0.00021964,3]
[366930121,1750585789034,-460.0,0.00021964,3]
[366930122,1750585789057,-403.33594492,0.00021964,3]
[366930123,1750585789081,-460.0,0.00021964,3]
[366930124,1750585789104,-460.0,0.00021964,3]
[366930125,1750585789127,-251.41047161,0.00021964,3]
[366930126,1750585789150,-460.0,0.00021964,3]
[366930127,1750585789173,-460.0,0.00021964,3]
[366930128,1750585789195,-460.0,0.00021964,3]
[366930129,1750585789222,-460.0,0.00021964,3]
[366930130,1750585789244,-403.49693899,0.00021964,3]
[366930131,1750585789266,-479.80226872,0.00021964,3]
[366930132,1750585789289,-460.0,0.00021964,3]
[366930133,1750585789310,-460.0,0.00021964,3]
[366930134,1750585789333,-460.0,0.00021964,3]
[366930135,1750585789356,-1289.03,0.00021964,3]
[366930136,1750585789377,-1289.03,0.00021964,3]
[366930137,1750585789398,-467.56862276,0.00021964,3]
[366930138,1750585789419,-460.0,0.00021964,3]
[366930139,1750585789439,-463.68107306,0.00021964,3]
[366930140,1750585789460,-401.1486326,0.00021964,3]
[366930141,1750585789482,-464.74004729,0.00021964,3]
[366930142,1750585789504,-460.0,0.00021964,3]
[366930143,1750585789525,-402.70337366,0.00021964,3]
[366930144,1750585789547,-468.14253557,0.00021964,3]
[366930145,1750585789568,-294.57042974,0.00021964,3]
[366930146,1750585789590,-460.0,0.00021964,3]
[366930147,1750585789612,-473.73246631,0.00021964,3]
[366930148,1750585789632,-432.43100392,0.00021964,3]
[366930149,1750585789653,-471.35704306,0.00021964,3]
[366930150,1750585789674,-229.850972,0.00021964,7]
[366930151,1750585789696,-460.0,0.00021964,3]
[366930152,1750585789717,-460.0,0.00021964,3]
[366930153,1750585789739,-460.0,0.00021964,3]
[366930154,1750585789759,-466.89819389,0.00021964,3]
[366930155,1750585789780,-460.0,0.00021964,3]
[366930156,1750585789802,-460.0,0.00021964,3]
[366930157,1750585789825,-500.0,0.00021964,3]
[366930158,1750585789845,-460.0,0.00021964,3]
[366930159,1750585789868,-191.65861732,0.00021964,3]
[366930160,1750585789888,-460.0,0.00021964,3]
[366930161,1750585789909,-454.63145127,0.00021964,3]
[366930162,1750585789931,-460.0,0.00021964,3]
[366930163,1750585789952,-460.0,0.00021964,3]
[366930164,1750585789974,-460.0,0.00021964,3]
[366930165,1750585789995,-460.0,0.00021964,3]
[366930166,1750585790017,-460.0,0.00021964,3]
[366930167,1750585790039,-460.0,0.00021964,3]
[366930168,1750585790061,-460.0,0.00021964,3]
[366930169,1750585790083,-445.54688833,0.00021964,3]
[366930170,1750585790104,-444.20140932,0.00021964,3]
[366930171,1750585790126,-468.81651381,0.00021964,3]
[366930172,1750585790148,-460.0,0.00021964,3]
[366930173,1750585790169,-460.0,0.00021964,3]
[366930174,1750585790190,-460.0,0.00021964,3]
[366930175,1750585790212,-460.0,0.00021964,3]
[366930176,1750585790238,-407.741857,0.00021964,7]
[366930177,1750585790259,-407.741857,0.00021964,7]
[366930178,1750585790279,-407.741857,0.00021964,7]
[366930179,1750585790301,-407.741857,0.00021964,7]
[366930180,1750585790325,-460.0,0.00021964,3]
[366930181,1750585790346,-460.0,0.00021964,3]
[366930182,1750585790367,-500.0,0.00021964,3]
[366930183,1750585790389,-500.0,0.00021964,3]
[366930184,1750585790410,-460.0,0.00021964,3]
[366930185,1750585790430,-460.0,0.00021964,3]
[366930186,1750585790450,-286.46887693,0.00021964,3]
[366930187,1750585790472,-546.14,0.00021964,3]
[366930188,1750585790492,-460.0,0.00021964,3]
[366930189,1750585790513,-460.0,0.00021964,3]
[366930190,1750585790534,-460.0,0.00021964,3]
[366930191,1750585790554,-460.0,0.00021964,3]
[366930192,1750585790575,-462.05117041,0.00021964,3]
[366930193,1750585790595,-460.0,0.00021964,3]
[366930194,1750585790615,-460.0,0.00021964,3]
[366930195,1750585790636,-460.0,0.00021964,3]
[366930196,1750585790657,-460.0,0.00021964,3]
[366930197,1750585790678,-460.0,0.00021964,3]
[366930198,1750585790700,-460.0,0.00021964,3]
[366930199,1750585790721,-460.0,0.00021964,3]
[366930200,1750585790742,-460.0,0.00021964,3]
[366930201,1750585790763,-438.15455721,0.00021965,3]
[366930202,1750585790783,-340.0,0.00021965,3]
[366930203,1750585790803,-460.0,0.00021965,3]
[366930204,1750585790824,-460.0,0.00021965,3]
[366930205,1750585790844,-460.0,0.00021965,3]
[366930206,1750585790865,-460.0,0.00021965,3]
[366930207,1750585790884,-447.9048388,0.00021965,3]
[366930208,1750585790905,-460.0,0.00021965,3]
[366930209,1750585790926,-472.43704824,0.00021965,3]
[366930210,1750585790946,-220.12944889,0.00021965,3]
[366930211,1750585790967,-460.0,0.00021965,3]
[366930212,1750585790986,-512.9428965,0.00021965,3]
[366930213,1750585791008,-460.0,0.00021965,3]
[366930214,1750585791029,-460.0,0.00021965,3]
[366930215,1750585791049,-470.09385385,0.00021965,3]
[366930216,1750585791071,-460.0,0.00021965,3]
[366930217,1750585791173,-463.33132108,0.00021965,3]
[366930218,1750585791196,-486.77656515,0.00021965,3]
[366930219,1750585791222,-460.0,0.00021965,3]
[366930220,1750585791243,-460.0,0.00021965,3]
[366930221,1750585791265,-460.0,0.00021965,3]
[366930222,1750585791287,-472.85636517,0.00021965,3]
[366930223,1750585791309,-460.0,0.00021965,3]
[366930224,1750585791331,-460.0,0.00021965,3]
[366930225,1750585791352,-460.0,0.00021965,3]
[366930226,1750585791374,-460.0,0.00021965,3]
[366930227,1750585791396,-1185.16,0.00021965,2]
[366930228,1750585791418,-1185.16,0.00021965,2]
[366930229,1750585791441,-460.0,0.00021965,3]
[366930230,1750585791461,-460.0,0.00021965,3]
[366930231,1750585791482,-460.0,0.00021965,3]
[366930232,1750585791504,-460.0,0.00021965,3]
[366930233,1750585791523,-459.59434396,0.00021965,2]
[366930234,1750585791544,-340.0,0.00021965,3]
[366930235,1750585791566,-460.0,0.00021965,3]
[366930236,1750585791587,-460.0,0.00021965,3]
[366930237,1750585791607,-300.812604,0.00021965,7]
[366930238,1750585791629,-324.97568201,0.00021965,3]
[366930239,1750585791651,-460.0,0.00021965,3]
[366930240,1750585791672,-466.38672164,0.00021965,3]
[366930241,1750585791694,-460.0,0.00021965,3]
[366930242,1750585791716,-460.0,0.00021965,3]
[366930243,1750585791736,-460.0,0.00021965,3]
[366930244,1750585791757,-649.84,0.00021965,3]
[366930245,1750585791778,-370.28714679,0.00021965,3]
[366930246,1750585791800,-460.0,0.00021965,3]
[366930247,1750585791821,-151.0,0.00021965,7]
[366930248,1750585791841,-437.85748737,0.00021965,3]
[366930249,1750585791862,-500.0,0.00021965,3]
[366930250,1750585791883,-500.0,0.00021965,3]
[366930251,1750585791904,-460.0,0.00021965,3]
[366930252,1750585791926,-460.0,0.00021965,3]
[366930253,1750585791948,-765.19,0.00021965,3]
[366930254,1750585791971,-765.19,0.00021965,3]
[366930255,1750585791994,-151.0,0.00021965,7]
[366930256,1750585792017,-460.0,0.00021965,3]
[366930257,1750585792039,-482.31272876,0.00021965,3]
[366930258,1750585792062,-460.0,0.00021965,3]
[366930259,1750585792083,-460.0,0.00021965,3]
[366930260,1750585792106,-460.0,0.00021965,3]
[366930261,1750585792128,-460.0,0.00021965,3]
[366930262,1750585792152,-460.0,0.00021965,3]
[366930263,1750585792174,-460.0,0.00021965,3]
[366930264,1750585792196,-1289.03,0.00021965,3]
[366930265,1750585792221,-460.0,0.00021965,3]
[366930266,1750585792243,-460.0,0.00021965,3]
[366930267,1750585792268,-2806.27,0.00021965,3]
[366930268,1750585792292,-2806.27,0.00021965,3]
[366930269,1750585792314,-460.0,0.00021965,3]
[366930270,1750585792337,-2806.27,0.00021965,3]
[366930271,1750585792359,-460.0,0.00021965,3]
[366930272,1750585792380,-460.0,0.00021965,3]
[366930273,1750585792400,-463.60278948,0.00021965,3]
[366930274,1750585792422,-500.0,0.00021965,3]
[366930275,1750585792444,-500.0,0.00021965,3]
[366930276,1750585792465,-460.0,0.00021965,3]
[366930277,1750585792488,-460.0,0.00021965,3]
[366930278,1750585792509,-460.0,0.00021965,3]
[366930279,1750585792531,-460.0,0.00021965,3]
[366930280,1750585792553,-460.0,0.00021965,3]
[366930281,1750585792575,-460.0,0.00021965,3]
[366930282,1750585792596,-460.0,0.00021965,3]
[366930283,1750585792618,-460.0,0.00021965,3]
[366930284,1750585792640,-460.0,0.00021965,3]
[366930285,1750585792663,-460.0,0.00021965,3]
[366930286,1750585792684,-460.0,0.00021965,3]
[366930287,1750585792706,-460.0,0.00021965,3]
[366930288,1750585792727,-460.0,0.00021965,3]
[366930289,1750585792751,-167.66280954,0.00021965,3]
[366930290,1750585792772,-500.0,0.00021965,3]
[366930291,1750585792795,-974.64,0.00021965,3]
[366930292,1750585792818,-974.64,0.00021965,3]
[366930293,1750585792840,-974.64,0.00021965,3]
[366930294,1750585792863,-460.0,0.00021965,3]
[366930295,1750585792886,-546.14,0.00021965,3]
[366930296,1750585792909,-546.14,0.00021965,3]
[366930297,1750585792930,-449.45173939,0.00021965,3]
[366930298,1750585792950,-460.0,0.00021965,3]
[366930299,1750585792971,-460.0,0.00021965,3]
[366930300,1750585792992,-509.83739879,0.00021965,3]
[366930301,1750585793015,-460.0,0.00021965,3]
[366930302,1750585793037,-314.88004447,0.00021965,3]
[366930303,1750585793058,-460.0,0.00021965,3]
[366930304,1750585793079,-460.0,0.00021966,3]
[366930305,1750585793101,-460.0,0.00021966,3]
[366930306,1750585793122,-468.47714316,0.00021966,3]
[366930307,1750585793143,-342.59476592,0.00021966,3]
[366930308,1750585793165,-460.0,0.00021966,3]
[366930309,1750585793273,-460.0,0.00021966,3]
[366930310,1750585793297,-460.0,0.00021966,3]
[366930311,1750585793321,-460.0,0.00021966,3]
[366930312,1750585793344,-473.7508629,0.00021966,3]
[366930313,1750585793367,-460.0,0.00021966,3]
[366930314,1750585793389,-460.0,0.00021966,3]
[366930315,1750585793412,-1185.16,0.00021966,2]
[366930316,1750585793434,-1185.16,0.00021966,2]
[366930317,1750585793455,-291.22268529,0.00021966,3]
[366930318,1750585793476,-460.0,0.00021966,3]
[366930319,1750585793499,-460.0,0.00021966,3]
[366930320,1750585793521,-460.0,0.00021966,3]
[366930321,1750585793543,-460.0,0.00021966,3]
[366930322,1750585793566,-460.0,0.00021966,3]
[366930323,1750585793588,-460.0,0.00021966,3]
[366930324,1750585793612,-460.0,0.00021966,3]
[366930325,1750585793636,-649.84,0.00021966,3]
[366930326,1750585793659,-288.295922,0.00021966,7]
[366930327,1750585793680,-288.295922,0.00021966,7]
[366930328,1750585793703,-460.0,0.00021966,3]
[366930329,1750585793725,-500.0,0.00021966,3]
[366930330,1750585793747,-500.0,0.00021966,3]
[366930331,1750585793769,-460.0,0.00021966,3]
[366930332,1750585793791,-468.32846107,0.00021966,3]
[366930333,1750585793815,-765.19,0.00021966,3]
[366930334,1750585793838,-765.19,0.00021966,3]
[366930335,1750585793861,-460.0,0.00021966,3]
[366930336,1750585793881,-460.0,0.00021966,3]
[366930337,1750585793904,-460.0,0.00021966,3]
[366930338,1750585793926,-460.0,0.00021966,3]
[366930339,1750585793948,-460.0,0.00021966,3]
[366930340,1750585793970,-460.0,0.00021966,3]
[366930341,1750585793992,-351.5229203,0.00021966,3]
[366930342,1750585794015,-460.0,0.00021966,3]
[366930343,1750585794037,-460.0,0.00021966,3]
[366930344,1750585794058,-1289.03,0.00021966,3]
[366930345,1750585794080,-460.0,0.00021966,3]
[366930346,1750585794102,-460.0,0.00021966,3]
[366930347,1750585794127,-2806.27,0.00021966,3]
[366930348,1750585794151,-2806.27,0.00021966,3]
[366930349,1750585794174,-460.0,0.00021966,3]
[366930350,1750585794196,-460.0,0.00021966,3]
[366930351,1750585794220,-460.0,0.00021966,3]
[366930352,1750585794244,-500.0,0.00021966,3]
[366930353,1750585794267,-500.0,0.00021966,3]
[366930354,1750585794291,-460.0,0.00021966,3]
[366930355,1750585794313,-460.0,0.00021966,3]
[366930356,1750585794335,-460.0,0.00021966,3]
[366930357,1750585794356,-460.0,0.00021966,3]
[366930358,1750585794377,-460.0,0.00021966,3]
[366930359,1750585794399,-460.0,0.00021966,3]
[366930360,1750585794420,-460.0,0.00021966,3]
[366930361,1750585794440,-407.741857,0.00021966,7]
[366930362,1750585794461,-407.741857,0.00021966,7]
[366930363,1750585794485,-974.64,0.00021966,3]
[366930364,1750585794508,-974.64,0.00021966,3]
[366930365,1750585794531,-546.14,0.00021966,3]
[366930366,1750585794552,-546.14,0.00021966,3]
[366930367,1750585794574,-227.93357061,0.00021966,3]
[366930368,1750585794596,-460.0,0.00021966,3]
[366930369,1750585794619,-460.0,0.00021966,3]
[366930370,1750585794641,-460.0,0.00021967,3]
[366930371,1750585794662,-460.0,0.00021967,3]
[366930372,1750585794684,-460.0,0.00021967,3]
[366930373,1750585794706,-460.0,0.00021967,3]
[366930374,1750585794731,-460.0,0.00021967,3]
[366930375,1750585794753,-460.0,0.00021967,3]
[366930376,1750585794776,-460.0,0.00021967,3]
[366930377,1750585794799,-546.14,0.00021967,3]
[366930378,1750585794824,-1011.35442707,0.00021968,2]
[366930379,1750585794846,-520.83068004,0.00021968,2]
[366930380,1750585794870,-460.0,0.0002197,3]
[366930381,1750585794894,-460.0,0.0002197,3]
[366930382,1750585794916,-500.0,0.0002197,2]
[366930383,1750585794939,-460.0,0.0002197,3]
[366930384,1750585794960,-460.0,0.0002197,3]
[366930385,1750585794984,-460.0,0.0002197,3]
[366930386,1750585795006,-460.0,0.0002197,3]
[366930387,1750585795028,-460.0,0.0002197,3]
[366930388,1750585795050,-460.0,0.0002197,3]
[366930389,1750585795071,-1000.0,0.0002197,15]
[366930390,1750585795091,-1000.0,0.0002197,15]
[366930391,1750585795113,-1000.0,0.0002197,15]
[366930392,1750585795134,-1000.0,0.0002197,15]
[366930393,1750585795155,-1000.0,0.0002197,15]
[366930394,1750585795178,-1000.0,0.0002197,15]
[366930395,1750585795199,-1000.0,0.0002197,15]
[366930396,1750585795223,-1000.0,0.0002197,15]
[366930397,1750585795326,-1000.0,0.0002197,15]
[366930398,1750585795349,-1000.0,0.0002197,15]
[366930399,1750585795372,-738.82880438,0.0002197,15]
[366930400,1750585795394,-460.0,0.0002197,3]
[366930401,1750585795416,-440.0,0.0002197,3]
[366930402,1750585795438,-473.15221159,0.0002197,3]
[366930403,1750585795460,-460.0,0.0002197,3]
[366930404,1750585795483,-160.0,0.0002197,2]
[366930405,1750585795507,-460.0,0.0002197,3]
[366930406,1750585795530,-460.0,0.0002197,3]
[366930407,1750585795553,-649.84,0.0002197,3]
[366930408,1750585795577,-460.0,0.0002197,3]
[366930409,1750585795600,-467.14229788,0.0002197,3]
[366930410,1750585795624,-460.0,0.0002197,3]
[366930411,1750585795651,-1289.03,0.0002197,3]
[366930412,1750585795674,-460.0,0.0002197,3]
[366930413,1750585795696,-460.0,0.0002197,3]
[366930414,1750585795719,-460.0,0.0002197,3]
[366930415,1750585795740,-460.0,0.0002197,3]
[366930416,1750585795762,-532.19561367,0.0002197,3]
[366930417,1750585795783,-378.60515801,0.0002197,3]
[366930418,1750585795804,-460.0,0.0002197,3]
[366930419,1750585795825,-460.0,0.0002197,3]
[366930420,1750585795846,-1185.16,0.00021971,2]
[366930421,1750585795869,-151.0,0.00021971,7]
[366930422,1750585795890,-500.0,0.00021971,3]
[366930423,1750585795914,-765.19,0.00021971,3]
[366930424,1750585795936,-151.0,0.00021971,7]
[366930425,1750585795961,-500.0,0.00021971,3]
[366930426,1750585795983,-460.0,0.00021972,3]
[366930427,1750585796006,-460.0,0.00021972,3]
[366930428,1750585796029,-284.21,0.00021972,3]
[366930429,1750585796055,-2806.27,0.00021972,3]
[366930430,1750585796078,-460.0,0.00021972,3]
[366930431,1750585796101,-460.0,0.00021972,3]
[366930432,1750585796127,-974.64,0.00021972,3]
[366930433,1750585796149,-546.14,0.00021972,3]
[366930434,1750585796171,-440.1212776,0.00021973,2]
[366930435,1750585796192,-505.21445041,0.00021973,2]
[366930436,1750585796214,-595.57623312,0.00021973,2]
[366930437,1750585796243,-502.47510702,0.00021973,2]
[366930438,1750585796267,-510.90691557,0.00021973,2]
[366930439,1750585796289,-500.0,0.00021973,2]
[366930440,1750585796311,-269.97402941,0.00021973,2]
[366930441,1750585796332,-171.19469755,0.00021973,2]
[366930442,1750585796353,-469.58064687,0.00021973,2]
[366930443,1750585796376,-506.63167731,0.00021973,2]
[366930444,1750585796397,-500.87736512,0.00021973,2]
[366930445,1750585796418,-500.0,0.00021973,2]
[366930446,1750585796439,-508.41042037,0.00021973,2]
[366930447,1750585796460,-500.0,0.00021973,2]
[366930448,1750585796481,-505.23839989,0.00021973,2]
[366930449,1750585796501,-500.0,0.00021973,2]
[366930450,1750585796521,-500.0,0.00021973,2]
[366930451,1750585796541,-156.75233049,0.00021973,2]
[366930452,1750585796562,-464.32019939,0.00021973,2]
[366930480,1750585836164,200.0,0.00024931,120]
[366930481,1750585837552,-5000.0,0.00021698,2]
[366930482,1750585837562,-629.47344288,0.00021862,2]
[366930483,1750585837572,-300.0,0.00021916,2]
[366930484,1750585837582,-1200.0,0.00021916,2]
[366930485,1750585837592,-311.92038494,0.00021916,2]
[366930486,1750585837602,-311.41996393,0.00021916,2]
[366930487,1750585837611,-500.0,0.00021916,2]
[366930488,1750585837621,-553.34855005,0.00021916,2]
[366930489,1750585837631,-250.9891807,0.00021916,2]
[366930490,1750585837644,-368.89561412,0.00021916,2]
[366930491,1750585837654,-391.07711951,0.00021916,2]
[366930493,1750585837663,-500.0,0.00021916,2]
[366930494,1750585837675,-500.0,0.00021916,2]
[366930495,1750585837684,-500.0,0.00021916,2]
[366930496,1750585837693,-500.0,0.00021916,2]
[366930497,1750585837703,-500.0,0.00021916,2]
[366930498,1750585837713,-405.79862882,0.00021916,2]
[366930499,1750585837723,-156.67340006,0.00021916,2]
[366930500,1750585837732,-500.0,0.00021916,2]
[366930501,1750585837743,-460.0,0.00021917,3]
[366930502,1750585837752,-460.0,0.00021917,3]
[366930503,1750585837763,-460.0,0.00021917,3]
[366930504,1750585837772,-460.0,0.00021917,3]
[366930505,1750585837781,-460.0,0.00021917,3]
[366930506,1750585837791,-461.55380203,0.00021917,3]
[366930507,1750585837800,-462.95564941,0.00021917,3]
[366930509,1750585837810,-420.0,0.00021917,3]
[366930511,1750585837819,-2099.57,0.00021917,3]